Cogmind - Beta 11 X11 @@@ ROGUE MODE // 2022.03.04 @ 19:56:17 Player: Puzzlebark Result: Destroyed by DAS Turret with DAS Cannon Performance ------------- Evolutions (0) 0 Regions Visited (3) 600 Robots Destroyed (19) 95 Value Destroyed (357) 357 Prototype IDs (2) 40 Alien Tech Used (0) 0 Bonus (-18) -18 TOTAL SCORE: 1074 Bonus ------- Friendly Fire -18 Cogmind --------- Core Integrity 0/250 Matter 300/300 Energy 100/100 System Corruption 0% Temperature Cool (2) Movement Hovering (80) Location -10/Exiles Parts ------- > --- POWER (1) -------- (None) > --- PROPULSION (2) --- Combat Airjet > --- UTILITY (2) ------ Small Storage Unit > --- WEAPON (2) ------- (None) > --- INVENTORY (8) ---- Light Ion Engine Advanced Targeting Computer Melee Analysis Suite EM Pulse Gun Beam Cannon Beam Cannon Assault Rifle Assault Rifle Peak State ------------ > --- POWER ------------ Light Nuclear Core > --- PROPULSION ------- Hover Unit Combat Airjet > --- UTILITY ---------- Small Storage Unit Improved Light Armor Plating > --- WEAPON ----------- Mini Grenade Launcher Scythe > --- INVENTORY -------- Light Ion Engine Advanced Targeting Computer Melee Analysis Suite EM Pulse Gun Beam Cannon Beam Cannon Assault Rifle Assault Rifle [Rating: 19] Favorites ----------- Power Light Ion Engine Engine Light Ion Engine Power Core Light Nuclear Core Propulsion Aluminum Leg Leg Aluminum Leg Hover Unit Combat Airjet Utility Small Storage Unit Device Heat Sink Storage Small Storage Unit Processor Improved Targeting Computer Protection Improved Light Armor Plating Weapon Beam Cannon Energy Gun EM Pulse Gun Energy Cannon Beam Cannon Ballistic Gun Assault Rifle Launcher Mini Grenade Launcher Slashing Weapon Scythe Build | -11 -10 -10 -10 ------- Run | Scr Mat Min Exi Slots Evolved . | . . . . Power . | . . . . Propulsion . | . . . . Utility . | . . . . Weapon . | . . . . Parts Attached 24 | 6 10 7 1 Power 3 | 1 . 2 . Engine 2 | 1 . 1 . Core 1 | . . 1 . Reactor . | . . . . Propulsion 4 | 2 . 2 . Treads . | . . . . Leg 2 | 2 . . . Wheel . | . . . . Hover 2 | . . 2 . Flight . | . . . . Utility 6 | 1 3 2 . Device 1 | . 1 . . Storage 1 | 1 . . . Processor 1 | . 1 . . Hackware . | . . . . Protection 3 | . 1 2 . Artifact . | . . . . Weapon 11 | 2 7 1 1 Energy Gun 4 | 2 2 . . Energy Cannon 2 | . 2 . . Ballistic Gun 1 | . 1 . . Ballistic Cannon . | . . . . Launcher 3 | . 2 1 . Special Weapon . | . . . . Impact Weapon . | . . . . Slashing Weapon 1 | . . . 1 Piercing Weapon . | . . . . Special Melee Weapon . | . . . . Unidentified Prototypes . | . . . . Parts Lost 7 | . . 3 4 Power 2 | . . 1 1 Propulsion 1 | . . . 1 Utility 2 | . . 1 1 Weapon 2 | . . 1 1 Highest Loss Streak 2 | . . 2 2 To Critical Strikes 1 | . . . 1 Average Slot Usage (%) 96 | . 98 97 89 Engine 7 | . 14 2 . Core 6 | . . 10 12 Leg 13 | . 28 4 . Hover 13 | . . 23 25 Device 3 | . 7 . . Storage 14 | . 14 14 14 Processor 1 | . 3 . . Protection 7 | . 1 13 11 Energy Gun 3 | . 7 . . Energy Cannon 10 | . 8 14 10 Launcher 12 | . 11 13 13 Naked Turns . | . . . . Heaviest Build 17 | 12 17 17 17 Greatest Support 20 | 20 20 20 18 Greatest Overweight (x) 1 | . . . 1 Average Overweight (x) . | . . . . Largest Inventory Capacity 8 | 8 8 8 8 Average Capacity 7 | 6 8 8 8 Most Carried 8 | 2 6 8 8 Average Carried 5 | 1 4 6 8 Final Capacity 8 | 8 8 8 8 Final Carried 8 | 2 6 8 8 Class Distribution -------------------- 55% | Mutant 44% | Scavenger-Mutant Dominant Class ---------------- Mutant | -10/Materials Scavenger-Mutant | -10/Mines Scavenger-Mutant | -10/Exiles Resources | -11 -10 -10 -10 ----------- Run | Scr Mat Min Exi Matter Collected 622 | 135 116 326 45 Remotely . | . . . . Salvage Created 330 | . 180 149 1 Parts 35 | . 18 17 . Haulers Intercepted . | . . . . Recyclers Shooed 1 | . . 1 . Parts Field Recycled . | . . . . Retrieved Matter . | . . . . Parts Self-Destructed . | . . . . Prevented . | . . . . Kills | -11 -10 -10 -10 ------- Run | Scr Mat Min Exi Combat Hostiles Destroyed 25 | . 8 10 7 Guns 1 | . 1 . . AOE 24 | . 7 10 7 Classes Destroyed 6 | . 4 2 . Builder 1 | . . 1 . Tunneler 2 | . 1 1 . Watcher 2 | . 2 . . Swarmer 9 | . 6 3 . Grunt 5 | . 2 3 . Assembled 11 | . . 4 7 Best Kill Streak 7 | . 5 4 7 Combat Bots Only 7 | . 5 4 7 Max Kills in Single Turn 3 | . 3 2 2 Gunslinging . | . . . . Exploded 3 | . 3 2 2 Melee . | . . . . Uniques/NPCs Destroyed . | . . . . Combat | -11 -10 -10 -10 -------- Run | Scr Mat Min Exi Damage Taken 968 | . 69 497 402 Core 258 | . 7 113 138 Absorbed by Shields . | . . . . Core Remaining (%) 100 | 100 . . . Volleys Fired 42 | . 16 21 5 Largest 2 | . 2 1 1 Hottest 70 | . 70 60 30 Shots Fired 45 | . 19 21 5 Gun 8 | . 8 . . Cannon 16 | . 6 10 . Launcher 21 | . 5 11 5 Special . | . . . . Kinetic 2 | . 2 . . Thermal 16 | . 6 10 . Explosive 21 | . 5 11 5 Electromagnetic 6 | . 6 . . Robot Hit Streak 5 | . 5 3 1 Robot Miss Streak 5 | . 1 5 1 Penetration Max . | . . . . Secondary Targets . | . . . . Shots Hit Robots 22 | . 13 8 1 Core Hits 51 | . 14 22 15 Critical Kills . | . . . . Critical Parts Destroyed . | . . . . Critical Strikes . | . . . . Melee Attacks 3 | . . . 3 Impact . | . . . . Slashing 3 | . . . 3 Piercing . | . . . . Sneak Attacks . | . . . . Combat Hostiles . | . . . . Follow-up Attacks . | . . . . Damage Inflicted 1894 | . 639 833 422 Guns 109 | . 109 . . Cannons 175 | . 70 105 . Explosions 1610 | . 460 728 422 Melee . | . . . . Ramming . | . . . . Kinetic 21 | . 21 . . Thermal 221 | . 116 105 . Explosive 1564 | . 414 728 422 Electromagnetic 88 | . 88 . . Impact . | . . . . Slashing . | . . . . Piercing . | . . . . Highest Corruption . | . . . . Average Corruption . | . . . . Corruption Purged . | . . . . Corruption Blocked . | . . . . Overload Shots . | . . . . Overflow Damage 148 | . 30 20 98 Projectiles . | . . . . Explosions 148 | . 30 20 98 Melee . | . . . . Knockbacks . | . . . . Impact . | . . . . Kinetic . | . . . . Secondary . | . . . . Self-Inflicted Damage 190 | . . 78 112 Shots 5 | . . 3 2 Rammed . | . . . . Targets Rammed 1 | 1 . . . Kicked 1 | 1 . . . Crushed . | . . . . Highest Temperature 52 | . 52 43 4 Average Temperature 16 | . 20 15 4 Received Heat Transfer 48 | . 18 30 . Siege Activations . | . . . . Robots Corrupted . | . . . . Combat Hostiles . | . . . . Parts Fried 3 | . 3 . . Impact Corruptions . | . . . . Robots Melted . | . . . . Combat Hostiles . | . . . . Parts Melted . | . . . . Heat Transferred 420 | . 198 222 . Parts Sabotaged . | . . . . Parts Stolen . | . . . . Parts Stripped . | . . . . Power Chain Reactions 1 | . 1 . . Missiles Intercepted . | . . . . Alert | -11 -10 -10 -10 ------- Run | Scr Mat Min Exi Peak Influence 301 | . 248 301 . Initial 21 | . . 21 . Average 111 | . 104 131 . Maximum Alert Level 1 | . 1 1 . Low Security (%) 73 | 100 83 57 . Level 1 26 | . 16 42 . Level 2 . | . . . . Level 3 . | . . . . Level 4 . | . . . . Level 5 . | . . . . High Security . | . . . . Max Security . | . . . . Squads Dispatched 1 | . . 1 . Investigation 1 | . . 1 . Extermination . | . . . . Reinforcement . | . . . . Assault . | . . . . Garrison . | . . . . Intercept . | . . . . Searches Triggered . | . . . . Construction Impeded . | . . . . Haulers Reinforced . | . . . . Active Scanning Responses . | . . . . Cargo Convoy Interrupts . | . . . . Stealth | -11 -10 -10 -10 --------- Run | Scr Mat Min Exi Distress Signals . | . . . . Communications Jammed . | . . . . Distress Signals . | . . . . Times Spotted 44 | . 15 21 8 Peak Tracking Total 14 | . 4 14 9 Tactical Retreats 1 | . . . 1 Traps | -11 -10 -10 -10 ------- Run | Scr Mat Min Exi Traps Triggered . | . . . . Indirectly . | . . . . Trap Hack Attempts . | . . . . Triggered . | . . . . Disarmed . | . . . . Reprogrammed . | . . . . Reused . | . . . . Traps Extracted . | . . . . Installed . | . . . . Triggered . | . . . . Machines | -11 -10 -10 -10 ---------- Run | Scr Mat Min Exi Machines Disabled 4 | . . 2 2 Max in Single Turn 2 | . . 2 1 Machines Sabotaged . | . . . . Garrisons Compromised . | . . . . Overloaded Fab Kills . | . . . . Hacking | -11 -10 -10 -10 --------- Run | Scr Mat Min Exi Machines Accessed 11 | . 9 2 . Terminals 9 | . 8 1 . Fabricators . | . . . . Repair Stations 1 | . 1 . . Recycling Units . | . . . . Scanalyzers . | . . . . Garrison Access . | . . . . Total Hacks 33 | . 30 3 . Successful 19 | . 16 3 . Failed 14 | . 14 . . Catastrophic 1 | . 1 . . Database Lockouts . | . . . . Manual 19 | . 17 2 . Terminals 30 | . 28 2 . Fabricators . | . . . . Repair Stations 2 | . 2 . . Recycling Units . | . . . . Scanalyzers . | . . . . Garrison Access . | . . . . Terminal Hacks 14 | . 12 2 . Robot Analysis 2 | . 2 . . Prototype ID Bank 1 | . 1 . . Open Door 1 | . . 1 . Branch Access Points 1 | . 1 . . Terminal Index 1 | . 1 . . Unreport Threat 1 | . 1 . . Dispatch Records 1 | . 1 . . Maintenance Status 1 | . 1 . . Security Status 1 | . 1 . . Hauler Manifests 1 | . 1 . . Registered Components 1 | . 1 . . Zone Layout 2 | . 1 1 . Fabricator Hacks . | . . . . Repair Station Hacks . | . . . . Recycling Unit Hacks . | . . . . Scanalyzer . | . . . . Garrison Access Hacks . | . . . . Unauthorized Hacks 5 | . 4 1 . Terminals 5 | . 4 1 . Track 1 | . . 1 . Assimilate 1 | . 1 . . Botnet 2 | . 2 . . Operators 1 | . 1 . . Fabricators . | . . . . Repair Stations . | . . . . Recycling Units . | . . . . Scanalyzers . | . . . . Garrison Access . | . . . . Data Cores Recovered . | . . . . Used . | . . . . Hacking Detections 10 | . 9 1 . Full Trace Events 3 | . 3 . . Feedback Events . | . . . . Feedback Blocked . | . . . . Robot Schematics Acquired . | . . . . Robots Built . | . . . . Authchips . | . . . . Time . | . . . . Total Robot Build Rating . | . . . . Part Schematics Acquired . | . . . . Parts Built . | . . . . Authchips . | . . . . Time . | . . . . Total Part Build Rating . | . . . . Parts Repaired . | . . . . Time . | . . . . Parts Recycled . | . . . . Recycled Matter . | . . . . Retrieved Matter . | . . . . Retrieved Components . | . . . . Parts Scanalyzed . | . . . . Part Schematics Acquired . | . . . . Parts Damaged . | . . . . Bothacking | -11 -10 -10 -10 ------------ Run | Scr Mat Min Exi Used RIF Installer . | . . . . Robots Hacked . | . . . . Non-combat . | . . . . Combat . | . . . . Robot Hacks Applied . | . . . . Relay Couplers Released . | . . . . Fabnet Peak Effective % . | . . . . Robots Rewired . | . . . . Allies Hacked . | . . . . Hacks Repelled . | . . . . Allies | -11 -10 -10 -10 -------- Run | Scr Mat Min Exi Total Allies 4 | . 1 3 . Largest Group 3 | . 1 3 2 Highest-Rated Group 72 | . 10 72 41 Highest-Rated Ally 31 | . 10 31 31 Total Orders 2 | . 2 . . STAY 1 | . 1 . . FOLLOW 1 | . 1 . . Ally Attacks . | . . . . Total Damage . | . . . . Kills . | . . . . Allies Corrupted . | . . . . Allies Melted . | . . . . Intel | -11 -10 -10 -10 ------- Run | Scr Mat Min Exi Robot Analysis Total 2 | . 2 . . Derelict Logs Recovered 2 | . . 2 . Drone Launches . | . . . . Drone Recoveries . | . . . . Exploration | -11 -10 -10 -10 ------------- Run | Scr Mat Min Exi Turns Passed 1969 | 65 849 683 372 Spaces Moved 1809 | 45 612 721 431 Core 1 | 1 . . . Treads . | . . . . Legs 710 | 44 612 54 . Wheels . | . . . . Hover 1098 | . . 667 431 Flight . | . . . . Fastest Speed 50 | 50 120 66 66 Average Speed 87 | 118 120 70 69 Slowest Speed 150 | 120 120 120 150 Overloaded Moves . | . . . . Propulsion Burnouts . | . . . . Robots Hopped . | . . . . Cave-ins Triggered . | . . . . Exploration Rate (%) 62 | 4 82 92 71 Regions Visited 3 Branch Regions 2 Pre-discovered Areas 1 | . . 1 . Known Exits Taken 1 | . 1 . . Unknown Exits Taken 2 | 1 . 1 . Scrap Searched 1 | . . 1 . Spaces Dug 27 | . . 27 . Terrain Destroyed 202 | . 37 91 74 Melee . | . . . . Projectile . | . . . . AOE 202 | . 37 91 74 Terrain Rammed . | . . . . Walls Destroyed . | . . . . Machines Disabled . | . . . . Actions | -11 -10 -10 -10 --------- Run | Scr Mat Min Exi Total 2129 | 53 705 876 495 Wait 231 | . 57 120 54 Move 1806 | 44 611 720 431 Hop . | . . . . Pick Up 14 | 2 6 6 . Fast Attach 11 | 6 3 2 . Attach 4 | . 1 3 . Detach 1 | . 1 . . Swap 9 | . 6 2 1 Drop 7 | . 4 2 1 Fire 42 | . 16 21 5 Melee 3 | . . . 3 Ram . | . . . . Kick 1 | 1 . . . Crush . | . . . . Escape Stasis . | . . . . Rewire . | . . . . Trap . | . . . . Miscellaneous . | . . . . Route ------- -11/Scrapyard -10/Materials (discovered 5 exits: [*Mat x3] / *Min x2) -10/Mines (discovered 3 exits: [*Mat x2] / *Exi) -10/Exiles (discovered 1 exit: [*Min]) History --------- Turn | Location | Event 6 | -11/Scrapyard | Discovered new exit (range 15) 66 | -11/Scrapyard | Entered Materials 318 | -10/Materials | Build established: Mutant 427 | -10/Materials | Discovered new exit (range 16) 654 | -10/Materials | Identified exit to Mines 692 | -10/Materials | Discovered new exit (range 6) 735 | -10/Materials | Discovered new exit (range 12) 915 | -10/Materials | Entered Mines 915 | -10/Mines | Accompanied by 1 ally 916 | -10/Mines | Assembled infested the area 937 | -10/Mines | Met 8R-AWN 1052 | -10/Mines | Discovered new exit (range 10) 1143 | -10/Mines | Discovered new exit (range 5) 1183 | -10/Mines | Discovered new exit (range 7) 1184 | -10/Mines | Learned location of Zion (-7) 1187 | -10/Mines | Received a Mining Laser from a helpful Derelict 1214 | -10/Mines | Met a Derelict shopkeep closing up shop 1316 | -10/Mines | Build established: Scavenger-Mutant 1361 | -10/Mines | Found a hidden stash of uninstalled traps 1389 | -10/Mines | Learned Materials terminal intel 1598 | -10/Mines | Entered Exiles 1598 | -10/Exiles | Accompanied by 2 allies 1615 | -10/Exiles | Welcomed by 8R-AWN 1626 | -10/Exiles | Met EX-HEX 1628 | -10/Exiles | Led the pair of lost Derelicts to a safe place 1719 | -10/Exiles | Met EX-DEC 1756 | -10/Exiles | Discovered new exit (range 14) 1822 | -10/Exiles | Met EX-BIN 1892 | -10/Exiles | Attacked by the Exiles 1912 | -10/Exiles | Core integrity fell below 50% 1941 | -10/Exiles | Core integrity fell below 20% 1943 | -10/Exiles | Destroyed 7 combat bots 1970 | -10/Exiles | Destroyed by DAS Turret with DAS Cannon Last Messages --------------- 01931_ Penetrated by HV Slug. 01931_ Lgt. Nuclear Core destroyed. 01931_ HV Slug penetrates Earth. 01931_ Penetrated by HV Slug. 01931_ HV Slug penetrates Earth. 01937_ Acquired 45 matter. 01937_ Penetrated by HV Slug. 01937_ HV Slug penetrates Wall. 01937_ HV Slug penetrates Earth. 01940_ Penetrated by HV Slug. 01940_ HV Slug penetrates Machine. 01940_ Machine disabled. 01940_ Penetrated by HV Slug. 01940_ HV Slug penetrates Wall. 01948_ HV Slug penetrates Machine. 01948_ Machine disabled. 01948_ HV Slug penetrates Wall. 01950_ Penetrated by HV Slug. 01950_ Critical hit (Destroy). 01950_ Mni. Grenade Launcher destroyed. Map ----- +----------------------------------------------------+ | ?????????#"" """#???????# """""??????? | | ?????????#"" #???????## """#???????? | | ?????????#"" #????????#" "X" """""??????? | | ?????????#"" "#????????#" "" #???????? | | ?????????# ""#????????#" !% """""""""#???????? | | ?????????#"" ""#???????##" ###########???????? | | #????????### ###??????##"" #?????????????????? | | ######???### ###?######"" #?????????????????? | | """#####X# #"###""""""" ##????????????????? | | """""" " "" % ##????######?#???? | | "" """ " #####"""""""""##? | | " " " """ """"## | | "" " # | | # " """# | | ## " "# | | ?## " "# | | ??##" "" | | ???#""" " """" " | | ??##" ##"###""" | | ??#"" ""####??#####""" | | ??#""" """##?????????##""" | | ?#""" """##???????????#""" | | ?#""" ""#???????????##"" | | ?#"" ########??####"""" | | ?#""" ##aaa####""" | | ?#"" @"""" | | ?##"" % | | ??#"""" | | ??## " | | ???#" " "" """ | | ???#"""" ""## ##""" " " ""#" | | ???#"" ""#### ######""" """##"""""" | | ????" """"##??# #????###""""######### | | ????""" """#??## ####???######???????? | | ???## ""##??#! "!#????????????????? | | ????#"" """##???#" !#????????????????? | | ?????#""" #?????#" "#????????????????? | | ???????"""" ##?????#!!""!"#????????????????? | | ????????? #??????########????????????????? | | ?????????#### #???????????????????????????????? | | ????????????## ????????????????????????????????? | | ?????????????? ????????????????????????????????? | | ?????????????????????????????????????????????????? | | ?????????????????????????????????????????????????? | | ?????????????????????????????????????????????????? | | ?????????????????????????????????????????????????? | | ?????????????????????????????????????????????????? | | ?????????????????????????????????????????????????? | | ?????????????????????????????????????????????????? | | ?????????????????????????????????????????????????? | +----------------------------------------------------+ Best States ------------- Heat Dissipation 35 Energy Generation 14 Energy Capacity 160 Matter Stores 300 Matter Capacity 300 Sight Range 16 Terrain Scan Density 10 Armor Coverage 150 Evasion (%) 55 Targeting Accuracy 6 Item Schematics ----------------- None Robot Schematics ------------------ None Fabricated ------------ Nothing Alien Tech Used ----------------- None Achievements -------------- None Challenges ------------ None Game ------ Seed ParticleSlugProtection Manual? 0 Play Time 00:22:49 Cumulative 189.1 hours Start 2022.03.04 @ 19:34:38 End 2022.03.04 @ 19:56:17 Sessions 1 Manual Loads 0 Difficulty Rogue Special Mode None Game No. 179 Rogue 118 Adventurer 61 Explorer 0 Win Type - Total 9 Types 7/0/2/0/0/0/0/0/0 Lore% 50 Gallery% 70 Achievement% 60 Wizard Run 0 Options --------- ASCII 0 Keyboard 0 Movement Mouse Keybinds 0 Fullscreen 2 Font 24/Smallcaps Map View 76x50 Tactical HUD 1 Map Filters NONE Filters NONE Steam 1 RUN: a3a9e1bc-8113-4eda-93ed-55601759fbee